[Event "106th British-ch 2019"]
[Site "Torquay"]
[Date "2019.07.30"]
[Round "4.11"]
[White "Willow, Jonah B"]
[Black "Pert, Nicholas"]
[Result "0-1"]
[ECO "B32"]
[WhiteElo "2343"]
[BlackElo "2563"]
[Annotator "ChessBase"]
[PlyCount "82"]
[EventDate "2019.07.27"]
[EventType "swiss"]
[EventCountry "GBR"]
[SourceTitle "playchess.com"]
[Source "ChessBase"]
[SourceQuality "1"]
[TimeControl "40/5400+30:1800+30"]

1. e4 {[%emt 0:00:00]} c5 {[%emt 0:00:00]} 2. Nf3 {[%emt 0:00:00]} Nc6 {[%emt 0:00:00]} 3. d4 {[%emt 0:00:00]} cxd4 {[%emt 0:00:00]} 4. Nxd4 {[%emt 0:00:00]} e5 {[%emt 0:00:00]} 5. Nb5 {[%emt 0:00:00]} d6 {[%emt 0:00:00]} 6. N1c3 {[%emt 0:00:00]} a6 {[%emt 0:00:01]} 7. Na3 {[%emt 0:00:00]} Be7 {[%emt 0:00:23]} 8. Nc4 {[%emt 0:00:01]} b5 {[%emt 0:00:26]} 9. Ne3 {[%emt 0:00:04]} Nf6 {[%emt 0:00:17]} 10. g3 {[%emt 0:00:05]} h5 {[%emt 0:00:53]} 11. Bg2 {[%emt 0:00:19]} h4 {[%emt 0:00:29]} 12. O-O {[%emt 0:00:05]} Rb8 {[%emt 0:00:54]} 13. Ncd5 {[%emt 0:02:02]} Nxd5 {[%emt 0:01:40]} 14. exd5 {[%emt 0:03:39]} Nd4 {[%emt 0:15:01]} 15. Qd3 {[%emt 0:06:35]} g6 {[%emt 0:00:09]} 16. c3 {[%emt 0:11:35]} Nf5 {[%emt 0:00:24]} 17. a4 {[%emt 0:00:04]} hxg3 {[%emt 0:11:26]} 18. hxg3 {[%emt 0:01:20]} Kf8 {[%emt 0:14:33]} 19. axb5 {[%emt 0:05:08]} axb5 {[%emt 0:00:04]} 20. Nc2 {[%emt 0:02:08]} Kg7 {[%emt 0:02:14]} 21. Nb4 {[%emt 0:03:29]} Qg8 {[%emt 0:01:02]} 22. Nc6 {[%emt 0:05:05]} Qh7 {[%emt 0:01:15]} 23. Re1 {[%emt 0:00:19]} Rb7 {[%emt 0:02:10]} 24. Qf3 {[%emt 0:10:46]} Bf6 {[%emt 0:12:41]} 25. Ra8 {[%emt 0:09:18]} Ne7 {[%emt 0:08:13]} 26. Be3 {[%emt 0:10:23]} Qh2+ {[%emt 0:01:17]} 27. Kf1 {[%emt 0:00:04]} Bf5 {[%emt 0:00:21]} 28. Rea1 {[%emt 0:04:12]} Rxa8 {[%emt 0:08:44]} 29. Rxa8 {[%emt 0:00:16]} Bd3+ {[%emt 0:00:20]} 30. Ke1 {[%emt 0:00:05]} e4 {[%emt 0:00:12]} 31. Qf4 {[%emt 0:08:03]} g5 {[%emt 0:03:03]} 32. Qg4 {[%emt 0:01:24]} Qxg2 {[%emt 0:01:18]} 33. Nxe7 {[%emt 0:03:09]} Qh1+ {[%emt 0:05:43]} 34. Kd2 {[%emt 0:00:01]} Rxe7 {[%emt 0:00:15]} 35. Bxg5 {[%emt 0:05:05]} e3+ {[%emt 0:05:32]} 36. Bxe3+ {[%emt 0:01:51]} Bg6 {[%emt 0:00:03]} 37. Qc8 {[%emt 0:00:07]} Qxd5+ {[%emt 0:00:37]} 38. Kc1 {[%emt 0:00:14]} Qh1+ {[%emt 0:00:15]} 39. Kd2 {[%emt 0:00:02]} Qd5+ {[%emt 0:03:35]} 40. Kc1 {[%emt 0:02:36]} Qh1+ {[%emt 0:00:27]} 41. Kd2 {[%emt 0:31:15]} Rxe3 {[%emt 0:33:58]} 0-1

[Event "106th British-ch 2019"]
[Site "Torquay"]
[Date "2019.07.30"]
[Round "4.12"]
[White "Gordon, Stephen J"]
[Black "Jones, Steven A"]
[Result "1-0"]
[ECO "D20"]
[WhiteElo "2516"]
[BlackElo "2117"]
[Annotator "ChessBase"]
[PlyCount "77"]
[EventDate "2019.07.27"]
[EventType "swiss"]
[EventCountry "GBR"]
[SourceTitle "playchess.com"]
[Source "ChessBase"]
[SourceQuality "1"]
[TimeControl "40/5400+30:1800+30"]

1. d4 {[%emt 0:04:14]} d5 {[%emt 0:00:42]} 2. c4 {[%emt 0:01:28]} dxc4 {[%emt 0:01:28]} 3. e4 {[%emt 0:00:26]} Nc6 {[%emt 0:01:52]} 4. Nf3 {[%emt 0:01:38]} Bg4 {[%emt 0:01:36]} 5. d5 {[%emt 0:00:06]} Ne5 {[%emt 0:00:47]} 6. Bf4 {[%emt 0:00:08]} Ng6 {[%emt 0:00:55]} 7. Be3 {[%emt 0:00:06]} e5 {[%emt 0:00:46]} 8. Bxc4 {[%emt 0:00:39]} Bd6 {[%emt 0:01:31]} 9. O-O {[%emt 0:05:32]} Nf6 {[%emt 0:00:08]} 10. Be2 {[%emt 0:02:59]} O-O {[%emt 0:03:08]} 11. Nfd2 {[%emt 0:01:21]} Bd7 {[%emt 0:08:19]} 12. Nc3 {[%emt 0:09:18]} Qe7 {[%emt 0:02:02]} 13. Rc1 {[%emt 0:03:23]} Nf4 {[%emt 0:02:33]} 14. Nc4 {[%emt 0:06:20]} Nxe2+ {[%emt 0:06:54]} 15. Qxe2 {[%emt 0:00:02]} Ng4 {[%emt 0:00:17]} 16. Bd2 {[%emt 0:01:19]} f5 {[%emt 0:04:57]} 17. Nxd6 {[%emt 0:14:11]} cxd6 {[%emt 0:01:34]} 18. exf5 {[%emt 0:01:26]} Bxf5 {[%emt 0:01:44]} 19. f4 {[%emt 0:00:35]} e4 {[%emt 0:07:53]} 20. h3 {[%emt 0:00:54]} Nf6 {[%emt 0:00:14]} 21. g4 {[%emt 0:01:13]} Bg6 {[%emt 0:00:25]} 22. f5 {[%emt 0:05:29]} Bf7 {[%emt 0:04:03]} 23. Bg5 {[%emt 0:01:08]} Rae8 {[%emt 0:02:16]} 24. Rcd1 {[%emt 0:01:01]} h6 {[%emt 0:02:53]} 25. Bf4 {[%emt 0:01:08]} a6 {[%emt 0:00:46]} 26. Qe3 {[%emt 0:03:50]} Nd7 {[%emt 0:02:24]} 27. Rd4 {[%emt 0:00:50]} Nf6 {[%emt 0:04:50]} 28. Qg3 {[%emt 0:09:26]} Rd8 {[%emt 0:01:06]} 29. Re1 {[%emt 0:03:03]} Rfe8 {[%emt 0:00:40]} 30. Qe3 {[%emt 0:03:26]} b5 {[%emt 0:00:59]} 31. Red1 {[%emt 0:01:24]} Qb7 {[%emt 0:01:49]} 32. g5 {[%emt 0:03:07]} hxg5 {[%emt 0:00:46]} 33. Bxg5 {[%emt 0:00:01]} Bh5 {[%emt 0:01:33]} 34. Bxf6 {[%emt 0:02:50]} gxf6 {[%emt 0:00:06]} 35. R1d2 {[%emt 0:00:08]} Rd7 {[%emt 0:06:03]} 36. Nxe4 {[%emt 0:02:14]} Rg7+ {[%emt 0:00:20]} 37. Kh2 {[%emt 0:00:02]} Qe7 {[%emt 0:00:48]} 38. Qf4 {[%emt 0:00:26]} Qe5 {[%emt 0:01:42]} 39. Qxe5 {[%emt 0:00:08]} 1-0

[Event "106th British-ch 2019"]
[Site "Torquay"]
[Date "2019.07.30"]
[Round "4.13"]
[White "Fernandez, Daniel Howard"]
[Black "Rudd, Jack"]
[Result "1-0"]
[ECO "A30"]
[WhiteElo "2466"]
[BlackElo "2275"]
[Annotator "ChessBase"]
[PlyCount "75"]
[EventDate "2019.07.27"]
[EventType "swiss"]
[EventCountry "GBR"]
[SourceTitle "playchess.com"]
[Source "ChessBase"]
[SourceQuality "1"]
[TimeControl "40/5400+30:1800+30"]

1. Nf3 {[%emt 0:02:22]} Nf6 {[%emt 0:00:00]} 2. b3 {[%emt 0:00:03]} g6 {[%emt 0:00:00]} 3. Bb2 {[%emt 0:00:01]} Bg7 {[%emt 0:00:00]} 4. e3 {[%emt 0:00:02]} O-O {[%emt 0:00:06]} 5. Be2 {[%emt 0:00:02]} c5 {[%emt 0:00:09]} 6. O-O {[%emt 0:00:23]} Nc6 {[%emt 0:00:05]} 7. c4 {[%emt 0:00:05]} b6 {[%emt 0:00:30]} 8. d4 {[%emt 0:00:06]} cxd4 {[%emt 0:00:07]} 9. Nxd4 {[%emt 0:00:04]} Bb7 {[%emt 0:00:11]} 10. Bf3 {[%emt 0:00:22]} Rc8 {[%emt 0:01:10]} 11. Nc3 {[%emt 0:00:08]} a6 {[%emt 0:00:29]} 12. Rc1 {[%emt 0:00:11]} d6 {[%emt 0:03:18]} 13. Qd2 {[%emt 0:01:34]} Nd7 {[%emt 0:02:33]} 14. Rfd1 {[%emt 0:00:43]} Nde5 {[%emt 0:01:29]} 15. Be2 {[%emt 0:00:02]} Nxd4 {[%emt 0:00:29]} 16. exd4 {[%emt 0:00:02]} Nc6 {[%emt 0:00:13]} 17. Bf3 {[%emt 0:00:25]} Rb8 {[%emt 0:03:30]} 18. Ne2 {[%emt 0:01:44]} e5 {[%emt 0:02:57]} 19. Ba3 {[%emt 0:02:04]} Re8 {[%emt 0:03:53]} 20. dxe5 {[%emt 0:00:22]} dxe5 {[%emt 0:00:43]} 21. Bd5 {[%emt 0:03:16]} Qf6 {[%emt 0:04:46]} 22. Qe3 {[%emt 0:00:40]} Nd4 {[%emt 0:02:34]} 23. Bxb7 {[%emt 0:00:03]} Nxe2+ {[%emt 0:00:10]} 24. Qxe2 {[%emt 0:00:04]} Rxb7 {[%emt 0:00:12]} 25. Qe4 {[%emt 0:00:12]} Rbb8 {[%emt 0:00:52]} 26. Rd6 {[%emt 0:01:03]} Qg5 {[%emt 0:01:39]} 27. Rcd1 {[%emt 0:00:26]} Bf8 {[%emt 0:00:56]} 28. Bc1 {[%emt 0:00:03]} Qe7 {[%emt 0:00:19]} 29. Rd7 {[%emt 0:00:46]} Qe6 {[%emt 0:00:17]} 30. Qd5 {[%emt 0:01:13]} h5 {[%emt 0:01:51]} 31. h3 {[%emt 0:00:45]} Qxd5 {[%emt 0:04:47]} 32. R1xd5 {[%emt 0:00:31]} Re6 {[%emt 0:00:53]} 33. a4 {[%emt 0:01:55]} Bc5 {[%emt 0:03:40]} 34. Bb2 {[%emt 0:00:56]} f6 {[%emt 0:01:44]} 35. Bc3 {[%emt 0:02:30]} a5 {[%emt 0:01:20]} 36. Bxa5 {[%emt 0:00:41]} Bxf2+ {[%emt 0:00:27]} 37. Kxf2 {[%emt 0:00:02]} bxa5 {[%emt 0:00:12]} 38. Rxa5 {[%emt 0:00:09]} 1-0

[Event "106th British-ch 2019"]
[Site "Torquay"]
[Date "2019.07.30"]
[Round "4.14"]
[White "Bradbury, Neil H"]
[Black "Taylor, Adam C"]
[Result "1/2-1/2"]
[ECO "E05"]
[WhiteElo "2322"]
[BlackElo "2402"]
[Annotator "NA"]
[PlyCount "71"]
[EventDate "2019.07.27"]
[EventType "swiss"]
[EventCountry "GBR"]
[SourceTitle "playchess.com"]
[Source "ChessBase"]
[SourceQuality "1"]
[TimeControl "40/5400+30:1800+30"]

1. d4 {[%emt 0:00:00]} Nf6 {[%emt 0:00:18]} 2. c4 {[%emt 0:00:00]} e6 {[%emt 0:00:05]} 3. Nf3 {[%emt 0:00:00]} d5 {[%emt 0:00:04]} 4. g3 {[%emt 0:00:22]} Be7 {[%emt 0:00:14]} 5. Bg2 {[%emt 0:00:07]} O-O {[%emt 0:00:17]} 6. O-O {[%emt 0:00:27]} dxc4 {[%emt 0:01:24]} 7. Ne5 {[%emt 0:04:08]} Nc6 {[%emt 0:02:54]} 8. Nxc6 {[%emt 0:04:44]} bxc6 {[%emt 0:00:06]} 9. Na3 {[%emt 0:00:10]} Bxa3 {[%emt 0:08:45]} 10. bxa3 {[%emt 0:00:08]} Nd5 {[%emt 0:24:10]} 11. Qc2 {[%emt 0:07:18]} Ba6 {[%emt 0:02:25]} 12. a4 {[%emt 0:17:24]} c5 {[%emt 0:07:59]} 13. dxc5 {[%emt 0:10:13]} Qf6 {[%emt 0:00:06]} 14. Bb2 {[%emt 0:03:02]} c3 {[%emt 0:00:12]} 15. Ba3 {[%emt 0:00:01]} Rab8 {[%emt 0:01:50]} 16. Rab1 {[%emt 0:00:44]} Qd4 {[%emt 0:04:10]} 17. c6 {[%emt 0:12:43]} Rxb1 {[%emt 0:12:35]} 18. Rxb1 {[%emt 0:03:16]} Re8 {[%emt 0:01:20]} 19. Bf1 {[%emt 0:07:34]} Qg4 {[%emt 0:05:26]} 20. Bc1 {[%emt 0:04:31]} Qc4 {[%emt 0:00:57]} 21. Ba3 {[%emt 0:03:39]} Qxc6 {[%emt 0:03:25]} 22. Rc1 {[%emt 0:09:22]} h6 {[%emt 0:06:59]} 23. Bg2 {[%emt 0:01:35]} Qc4 {[%emt 0:03:01]} 24. e4 {[%emt 0:01:11]} Nf6 {[%emt 0:02:08]} 25. Bf1 {[%emt 0:05:12]} Qc6 {[%emt 0:00:02]} 26. Qxc3 {[%emt 0:00:30]} Qxc3 {[%emt 0:00:24]} 27. Rxc3 {[%emt 0:00:02]} Bxf1 28. Kxf1 {[%emt 0:00:01]} Nxe4 {[%emt 0:09:13]} 29. Rxc7 {[%emt 0:00:02]} Rd8 {[%emt 0:00:13]} 30. Bb4 {[%emt 0:01:33]} Rd1+ {[%emt 0:01:14]} 31. Ke2 {[%emt 0:00:36]} Rb1 {[%emt 0:00:10]} 32. a3 {[%emt 0:00:33]} Rb2+ {[%emt 0:00:04]} 33. Ke3 {[%emt 0:00:31]} Nf6 {[%emt 0:00:37]} 34. Rxa7 {[%emt 0:00:51]} Nd5+ {[%emt 0:00:09]} 35. Kf3 {[%emt 0:01:10]} Nxb4 {[%emt 0:00:52]} 36. axb4 {[%emt 0:00:22]} 1/2-1/2

[Event "106th British-ch 2019"]
[Site "Torquay"]
[Date "2019.07.30"]
[Round "4.15"]
[White "Derakhshani, Borna"]
[Black "Pigott, John C"]
[Result "0-1"]
[ECO "A01"]
[WhiteElo "2300"]
[BlackElo "2384"]
[Annotator "NA"]
[PlyCount "36"]
[EventDate "2019.07.27"]
[EventType "swiss"]
[EventCountry "GBR"]
[SourceTitle "playchess.com"]
[Source "ChessBase"]
[SourceQuality "1"]
[TimeControl "40/5400+30:1800+30"]

1. b3 {[%emt 0:05:31]} e5 {[%emt 0:00:00]} 2. Bb2 {[%emt 0:00:04]} Nc6 {[%emt 0:00:00]} 3. e3 {[%emt 0:00:05]} Nf6 {[%emt 0:00:07]} 4. Bb5 {[%emt 0:00:06]} Bd6 {[%emt 0:00:20]} 5. Na3 {[%emt 0:00:44]} e4 {[%emt 0:02:44]} 6. Nc4 {[%emt 0:00:05]} Be7 {[%emt 0:00:16]} 7. Bxc6 {[%emt 0:00:55]} dxc6 {[%emt 0:01:09]} 8. Ne2 {[%emt 0:00:16]} O-O {[%emt 0:00:24]} 9. O-O {[%emt 0:01:07]} c5 {[%emt 0:13:45]} 10. Ne5 {[%emt 0:01:56]} Re8 {[%emt 0:07:54]} 11. d3 {[%emt 0:04:37]} Bd6 {[%emt 0:05:31]} 12. dxe4 {[%emt 0:00:07]} Nxe4 {[%emt 0:02:21]} 13. Nc4 {[%emt 0:02:02]} Bf8 {[%emt 0:01:46]} 14. Nf4 {[%emt 0:01:02]} Nd6 {[%emt 0:06:17]} 15. Ne5 {[%emt 0:01:21]} b6 {[%emt 0:06:11]} 16. Qh5 {[%emt 0:05:53]} f6 {[%emt 0:02:32]} 17. Neg6 {[%emt 0:03:13]} hxg6 {[%emt 0:03:36]} 18. Qd5+ {[%emt 0:00:05]} Be6 {[%emt 0:00:26]} 0-1

[Event "106th British-ch 2019"]
[Site "Torquay"]
[Date "2019.07.30"]
[Round "4.16"]
[White "Lane, Gary W"]
[Black "Brewer, Callum D"]
[Result "1/2-1/2"]
[ECO "B17"]
[WhiteElo "2364"]
[BlackElo "2086"]
[Annotator "NA"]
[PlyCount "68"]
[EventDate "2019.07.27"]
[EventType "swiss"]
[EventCountry "GBR"]
[SourceTitle "playchess.com"]
[Source "ChessBase"]
[SourceQuality "1"]
[TimeControl "40/5400+30:1800+30"]

1. e4 {[%emt 0:00:00]} c6 {[%emt 0:00:00]} 2. d4 {[%emt 0:00:00]} d5 {[%emt 0:00:00]} 3. Nd2 {[%emt 0:00:00]} dxe4 {[%emt 0:00:00]} 4. Nxe4 {[%emt 0:00:00]} Nd7 {[%emt 0:00:00]} 5. Bc4 {[%emt 0:01:11]} Ngf6 {[%emt 0:00:00]} 6. Ng5 {[%emt 0:00:11]} e6 {[%emt 0:00:00]} 7. Qe2 {[%emt 0:00:10]} Nb6 {[%emt 0:00:00]} 8. Bb3 {[%emt 0:00:23]} h6 {[%emt 0:00:05]} 9. N5f3 {[%emt 0:00:48]} a5 {[%emt 0:00:07]} 10. a4 {[%emt 0:01:06]} c5 {[%emt 0:00:28]} 11. Bf4 {[%emt 0:03:45]} Bd6 {[%emt 0:05:23]} 12. Bg3 {[%emt 0:16:24]} O-O {[%emt 0:02:53]} 13. dxc5 {[%emt 0:06:11]} Bxg3 {[%emt 0:08:51]} 14. hxg3 {[%emt 0:02:35]} Nbd7 {[%emt 0:01:04]} 15. Ne5 {[%emt 0:00:53]} Nxc5 {[%emt 0:04:56]} 16. Bc4 {[%emt 0:00:10]} b6 {[%emt 0:05:17]} 17. Ngf3 {[%emt 0:03:58]} Bb7 {[%emt 0:01:29]} 18. g4 {[%emt 0:10:18]} Nfe4 {[%emt 0:06:58]} 19. Rh5 {[%emt 0:03:57]} Nf6 {[%emt 0:08:17]} 20. Rh2 {[%emt 0:02:07]} Nfe4 {[%emt 0:00:43]} 21. Bb5 {[%emt 0:02:18]} Rc8 {[%emt 0:07:38]} 22. c3 {[%emt 0:04:34]} Qc7 {[%emt 0:02:49]} 23. Kf1 {[%emt 0:12:47]} f6 {[%emt 0:06:54]} 24. Ng6 {[%emt 0:07:33]} Nxc3 {[%emt 0:01:13]} 25. bxc3 {[%emt 0:02:24]} Bxf3 {[%emt 0:00:34]} 26. Qxf3 {[%emt 0:00:08]} Qxh2 {[%emt 0:00:14]} 27. g3 {[%emt 0:00:03]} Nb3 {[%emt 0:06:34]} 28. Rd1 {[%emt 0:03:53]} Rcd8 {[%emt 0:03:38]} 29. Bd3 {[%emt 0:11:30]} Rf7 {[%emt 0:05:24]} 30. Qe4 {[%emt 0:01:11]} f5 {[%emt 0:16:16]} 31. Qxe6 {[%emt 0:00:41]} Qh1+ {[%emt 0:00:19]} 32. Ke2 {[%emt 0:00:05]} Nc1+ {[%emt 0:00:03]} 33. Rxc1 {[%emt 0:00:37]} Qxc1 {[%emt 0:00:11]} 34. Ne7+ {[%emt 0:00:19]} Kf8 {[%emt 0:01:02]} 1/2-1/2

[Event "106th British-ch 2019"]
[Site "Torquay"]
[Date "2019.07.30"]
[Round "4.17"]
[White "Merriman, John"]
[Black "Bates, Richard A"]
[Result "1/2-1/2"]
[ECO "E44"]
[WhiteElo "2226"]
[BlackElo "2352"]
[Annotator "NA"]
[PlyCount "44"]
[EventDate "2019.07.27"]
[EventType "swiss"]
[EventCountry "GBR"]
[SourceTitle "playchess.com"]
[Source "ChessBase"]
[SourceQuality "1"]
[TimeControl "40/5400+30:1800+30"]

1. d4 {[%emt 0:00:51]} Nf6 {[%emt 0:00:00]} 2. c4 {[%emt 0:00:06]} e6 {[%emt 0:00:07]} 3. Nc3 {[%emt 0:00:04]} Bb4 {[%emt 0:00:16]} 4. e3 {[%emt 0:00:06]} b6 {[%emt 0:00:41]} 5. Nge2 {[%emt 0:00:05]} Ne4 {[%emt 0:01:12]} 6. Bd2 {[%emt 0:00:43]} Nxd2 {[%emt 0:01:03]} 7. Qxd2 {[%emt 0:00:06]} O-O {[%emt 0:01:23]} 8. a3 {[%emt 0:00:49]} Be7 {[%emt 0:00:27]} 9. d5 {[%emt 0:02:07]} d6 {[%emt 0:01:45]} 10. g3 {[%emt 0:06:56]} e5 {[%emt 0:01:44]} 11. Bg2 {[%emt 0:01:30]} Nd7 {[%emt 0:02:06]} 12. f4 {[%emt 0:04:20]} Nc5 {[%emt 0:22:00]} 13. Rd1 {[%emt 0:13:14]} exf4 {[%emt 0:07:14]} 14. exf4 {[%emt 0:03:12]} Bg4 15. b4 {[%emt 0:04:49]} Nd7 {[%emt 0:05:59]} 16. O-O {[%emt 0:00:00]} Bxe2 17. Nxe2 {[%emt 0:04:24]} Bf6 {[%emt 0:01:46]} 18. g4 {[%emt 0:00:00]} g6 {[%emt 0:19:30]} 19. g5 {[%emt 0:00:26]} Bg7 {[%emt 0:00:05]} 20. f5 {[%emt 0:11:04]} gxf5 {[%emt 0:05:44]} 21. Rxf5 {[%emt 0:01:28]} Ne5 {[%emt 0:08:13]} 22. Qf4 {[%emt 0:08:09]} Qe7 {[%emt 0:17:27]} 1/2-1/2

[Event "106th British-ch 2019"]
[Site "Torquay"]
[Date "2019.07.30"]
[Round "4.18"]
[White "Hand, Freddie"]
[Black "Ward, Chris G"]
[Result "1/2-1/2"]
[ECO "B07"]
[WhiteElo "2142"]
[BlackElo "2418"]
[Annotator "NA"]
[PlyCount "73"]
[EventDate "2019.07.27"]
[EventType "swiss"]
[EventCountry "GBR"]
[SourceTitle "playchess.com"]
[Source "ChessBase"]
[SourceQuality "1"]
[TimeControl "40/5400+30:1800+30"]

1. d4 {[%emt 0:00:00]} d6 {[%emt 0:00:43]} 2. e4 {[%emt 0:00:04]} Nf6 {[%emt 0:00:14]} 3. f3 {[%emt 0:01:13]} d5 {[%emt 0:00:12]} 4. Nc3 {[%emt 0:02:39]} e6 {[%emt 0:00:20]} 5. Be3 {[%emt 0:01:27]} Be7 {[%emt 0:00:24]} 6. Qd2 {[%emt 0:08:33]} O-O {[%emt 0:15:31]} 7. Nh3 {[%emt 0:37:39]} dxe4 {[%emt 0:05:10]} 8. fxe4 {[%emt 0:00:50]} c5 {[%emt 0:23:26]} 9. d5 {[%emt 0:17:59]} exd5 {[%emt 0:13:56]} 10. exd5 {[%emt 0:00:16]} Bg4 {[%emt 0:00:18]} 11. Nf2 {[%emt 0:02:39]} Bh5 {[%emt 0:08:01]} 12. h3 {[%emt 0:03:42]} Ne8 {[%emt 0:05:35]} 13. g4 {[%emt 0:01:20]} Bg6 {[%emt 0:00:05]} 14. O-O-O {[%emt 0:01:01]} Nd6 {[%emt 0:07:13]} 15. h4 {[%emt 0:02:52]} f5 {[%emt 0:02:52]} 16. g5 {[%emt 0:09:22]} Bh5 {[%emt 0:05:34]} 17. Be2 {[%emt 0:00:28]} Bxe2 {[%emt 0:01:31]} 18. Qxe2 {[%emt 0:00:04]} Re8 {[%emt 0:00:36]} 19. Nh3 {[%emt 0:00:13]} Nd7 {[%emt 0:04:03]} 20. Nf4 {[%emt 0:03:25]} Qa5 {[%emt 0:00:15]} 21. Ne6 {[%emt 0:01:48]} Bf8 {[%emt 0:01:04]} 22. Bf4 {[%emt 0:02:10]} a6 {[%emt 0:02:05]} 23. Qd3 {[%emt 0:00:44]} Nb5 {[%emt 0:01:30]} 24. Nxb5 {[%emt 0:00:26]} axb5 {[%emt 0:00:06]} 25. Nc7 {[%emt 0:00:09]} Qxa2 {[%emt 0:00:46]} 26. Nxe8 {[%emt 0:00:22]} Rxe8 {[%emt 0:00:31]} 27. Qxb5 {[%emt 0:01:08]} Re4 {[%emt 0:00:51]} 28. Rh3 {[%emt 0:00:42]} Rb4 {[%emt 0:00:27]} 29. Qxd7 {[%emt 0:00:37]} Qxb2+ {[%emt 0:00:07]} 30. Kd2 {[%emt 0:00:03]} Rxf4 {[%emt 0:00:34]} 31. Qe6+ {[%emt 0:00:35]} Kh8 {[%emt 0:00:03]} 32. Re1 {[%emt 0:00:49]} Rd4+ {[%emt 0:00:44]} 33. Rd3 {[%emt 0:00:16]} Qb4+ {[%emt 0:00:16]} 34. Kd1 {[%emt 0:00:20]} Qb1+ {[%emt 0:00:48]} 35. Kd2 {[%emt 0:00:10]} Qb4+ {[%emt 0:00:38]} 36. Kd1 {[%emt 0:00:41]} Qb1+ {[%emt 0:00:42]} 37. Kd2 {[%emt 0:00:12]} 1/2-1/2

[Event "106th British-ch 2019"]
[Site "Torquay"]
[Date "2019.07.30"]
[Round "4.19"]
[White "Storey, Charles H"]
[Black "Ogunshola, Olugbemiga (Ben)"]
[Result "1-0"]
[ECO "D03"]
[WhiteElo "2261"]
[BlackElo "2172"]
[Annotator "NA"]
[PlyCount "72"]
[EventDate "2019.07.27"]
[EventType "swiss"]
[EventCountry "GBR"]
[SourceTitle "playchess.com"]
[Source "ChessBase"]
[SourceQuality "1"]
[TimeControl "40/5400+30:1800+30"]

1. d4 {[%emt 0:03:45]} Nf6 {[%emt 0:02:44]} 2. Bg5 {[%emt 0:02:20]} e6 {[%emt 0:03:24]} 3. Nf3 {[%emt 0:02:24]} c5 {[%emt 0:02:49]} 4. c3 {[%emt 0:03:44]} Nc6 {[%emt 0:06:50]} 5. e3 {[%emt 0:01:21]} Qb6 {[%emt 0:03:34]} 6. Qc2 {[%emt 0:02:46]} Be7 {[%emt 0:06:56]} 7. Nbd2 {[%emt 0:02:05]} d5 {[%emt 0:01:47]} 8. Bd3 {[%emt 0:01:29]} h6 {[%emt 0:00:16]} 9. Bh4 {[%emt 0:00:45]} Bd7 {[%emt 0:00:29]} 10. O-O {[%emt 0:00:39]} Rc8 {[%emt 0:01:02]} 11. Qb1 {[%emt 0:15:04]} O-O {[%emt 0:07:43]} 12. Kh1 {[%emt 0:08:18]} Rfe8 {[%emt 0:01:51]} 13. h3 cxd4 {[%emt 0:07:30]} 14. exd4 Na5 {[%emt 0:00:49]} 15. b4 Nc4 {[%emt 0:11:32]} 16. Bxc4 dxc4 {[%emt 0:03:04]} 17. Ne5 Ba4 {[%emt 0:06:17]} 18. Bxf6 gxf6 {[%emt 0:13:39]} 19. Ng4 Kg7 {[%emt 0:05:29]} 20. f4 f5 {[%emt 0:05:09]} 21. Ne3 Rg8 {[%emt 0:04:15]} 22. Qe1 Bf6 {[%emt 0:04:18]} 23. Qe2 Qa6 {[%emt 0:05:07]} 24. Qh5 Rc7 {[%emt 0:05:54]} 25. Kh2 b6 {[%emt 0:04:58]} 26. g4 Bxd4 {[%emt 0:11:34]} 27. cxd4 c3 {[%emt 0:00:35]} 28. g5 hxg5 {[%emt 0:06:24]} 29. Qxg5+ Kf8 {[%emt 0:00:59]} 30. Qd8+ Be8 {[%emt 0:01:25]} 31. Qd6+ Re7 32. Ndc4 Qb7 33. d5 exd5 34. Qh6+ Rg7 35. Rg1 f6 36. Qh8+ Kf7 {[%emt 0:17:45]} 1-0

[Event "106th British-ch 2019"]
[Site "Torquay"]
[Date "2019.07.30"]
[Round "4.20"]
[White "Player, Edmund C"]
[Black "Holland, Chris Kd"]
[Result "0-1"]
[ECO "C06"]
[WhiteElo "2202"]
[BlackElo "2143"]
[Annotator "ChessBase"]
[PlyCount "112"]
[EventDate "2019.07.27"]
[EventType "swiss"]
[EventCountry "GBR"]
[SourceTitle "playchess.com"]
[Source "ChessBase"]
[SourceQuality "1"]
[TimeControl "40/5400+30:1800+30"]

1. e4 {[%emt 0:00:00]} e6 {[%emt 0:01:08]} 2. d4 {[%emt 0:00:00]} d5 {[%emt 0:00:07]} 3. Nd2 {[%emt 0:00:00]} Nf6 {[%emt 0:00:35]} 4. e5 {[%emt 0:00:02]} Nfd7 {[%emt 0:00:06]} 5. Bd3 {[%emt 0:00:12]} c5 {[%emt 0:00:06]} 6. c3 {[%emt 0:00:03]} Nc6 {[%emt 0:00:08]} 7. Ne2 {[%emt 0:00:07]} cxd4 {[%emt 0:00:16]} 8. cxd4 {[%emt 0:00:03]} f6 {[%emt 0:00:11]} 9. exf6 {[%emt 0:00:06]} Nxf6 {[%emt 0:00:04]} 10. Nf3 {[%emt 0:00:29]} Bd6 {[%emt 0:00:06]} 11. O-O {[%emt 0:01:04]} Qc7 {[%emt 0:00:06]} 12. Bd2 {[%emt 0:01:07]} O-O {[%emt 0:02:19]} 13. Ng3 {[%emt 0:02:19]} Bd7 {[%emt 0:03:53]} 14. Bc3 {[%emt 0:01:36]} e5 {[%emt 0:28:44]} 15. dxe5 {[%emt 0:02:11]} Nxe5 {[%emt 0:02:10]} 16. Be2 {[%emt 0:23:08]} Rae8 {[%emt 0:21:15]} 17. Rc1 {[%emt 0:18:18]} Qb8 {[%emt 0:17:33]} 18. b3 {[%emt 0:15:39]} Kh8 {[%emt 0:02:35]} 19. Bb2 {[%emt 0:02:44]} Ng6 {[%emt 0:12:26]} 20. Nd4 {[%emt 0:17:30]} Nf4 {[%emt 0:01:15]} 21. Bf3 {[%emt 0:00:09]} Ne4 {[%emt 0:02:22]} 22. Re1 {[%emt 0:04:00]} Ng5 {[%emt 0:00:53]} 23. Rxe8 {[%emt 0:01:58]} Nxf3+ {[%emt 0:00:38]} 24. Nxf3 {[%emt 0:00:19]} Qxe8 {[%emt 0:00:29]} 25. Qd4 {[%emt 0:04:09]} Qg6 {[%emt 0:00:04]} 26. Rd1 {[%emt 0:00:18]} Bh3 {[%emt 0:02:26]} 27. Nh4 {[%emt 0:01:32]} Qg5 {[%emt 0:00:05]} 28. Qxg7+ {[%emt 0:02:28]} Qxg7 {[%emt 0:00:07]} 29. Bxg7+ {[%emt 0:00:09]} Kxg7 {[%emt 0:00:01]} 30. gxh3 {[%emt 0:00:05]} Nxh3+ {[%emt 0:00:17]} 31. Kg2 {[%emt 0:00:23]} Nf4+ {[%emt 0:00:18]} 32. Kf1 {[%emt 0:01:04]} Bc5 {[%emt 0:00:31]} 33. Nhf5+ {[%emt 0:01:52]} Kg6 {[%emt 0:00:14]} 34. Nd4 {[%emt 0:01:19]} Nh3 {[%emt 0:00:24]} 35. Kg2 {[%emt 0:00:26]} Nxf2 {[%emt 0:00:10]} 36. Rd2 {[%emt 0:00:20]} Ng4 {[%emt 0:01:56]} 37. Ne6 {[%emt 0:00:45]} Ne3+ {[%emt 0:01:53]} 38. Kh3 {[%emt 0:00:07]} Rc8 {[%emt 0:00:14]} 39. Rd3 {[%emt 0:00:34]} Bb6 {[%emt 0:00:44]} 40. Nf4+ {[%emt 0:00:13]} Kf7 {[%emt 0:00:39]} 41. Nxd5 {[%emt 0:01:24]} Rd8 {[%emt 0:03:12]} 42. Nf4 {[%emt 0:01:59]} Rxd3 {[%emt 0:00:14]} 43. Nxd3 {[%emt 0:00:00]} Ke6 {[%emt 0:03:43]} 44. Ne4 {[%emt 0:02:56]} Kd5 {[%emt 0:00:17]} 45. Nf6+ {[%emt 0:01:18]} Kd4 {[%emt 0:00:04]} 46. Nb2 {[%emt 0:00:30]} Bd8 {[%emt 0:01:34]} 47. Ng4 {[%emt 0:04:22]} Nxg4 {[%emt 0:05:37]} 48. Kxg4 {[%emt 0:00:02]} Kc3 {[%emt 0:01:59]} 49. Nc4 {[%emt 0:03:51]} Bc7 {[%emt 0:01:58]} 50. h3 {[%emt 0:04:04]} b5 {[%emt 0:00:20]} 51. Ne3 {[%emt 0:01:20]} Kb2 {[%emt 0:00:20]} 52. Nd5 {[%emt 0:01:19]} Bd6 {[%emt 0:05:37]} 53. Kf5 {[%emt 0:05:01]} b4 {[%emt 0:00:09]} 54. Ke6 {[%emt 0:02:20]} Bf8 {[%emt 0:00:19]} 55. Kf7 {[%emt 0:06:57]} Bc5 {[%emt 0:00:07]} 56. Kg7 {[%emt 0:01:02]} Kxa2 {[%emt 0:00:35]} 0-1